Workbook

Sheet VARIAS OBRAS
C1: DATOS PROYECTO/OBRA
C2: PEM (PRESUPUESTO DE EJECUCIÓN MATERIAL) | D2: 10000000
C4: TIEMPO DE DURACIÓN EN MESES | D4: 18
C7: INDICADORES DE CONTROL DE CALIDAD
C10: ÍNDICE DE CALIDAD DE VARIAS OBRAS
L12: Peso de los indicadores | P12: Peso del grupo
L13: OBRA 1 | M13: OBRA 2 | N13: OBRA 3 | O13: PESO DE REF DEL GRUPO | P13: OBRA 1 | Q13: OBRA 2 | R13: OBRA 3
C14: FASE DE PROYECTO
A15: TIPO | C15: P INDICADORES SUPERVISORES PROYECTO | D15: OBRA 1 | E15: OBRA 2 | F15: OBRA 3 | G15: INTERVALO | H15: MIN | I15: MAX | J15: ESTÁNDAR | K15: PESO DE REFERENCIA | L15: PESO REAL 1 | M15: PESO REAL 2 | N15: PESO REAL 3 | O15: PESO DE REF DEL GRUPO | P15: PESO REAL DEL GRUPO 1 | Q15: PESO REAL DEL GRUPO 2 | R15: PESO REAL DEL GRUPO 3
A17: NEG | C17: Número de aclaraciones solicitadas | D17: 10 | E17: 4 | F17: 8 | G17: (0,PEM/1000000) | H17: 0 | I17: =ROUNDUP((D2/1000000),0) -> 10 | J17: =ROUNDUP((H17+1/3*(I17-H17)),0) -> 4 | K17: 10 | L17: =IF(D17<$H17,"ERROR",IF(D17>$I17,"ERROR",IF(D17<=$J17,$K17+(0.2*$K17*ABS(D17-$J17)/ABS($H17-$J17)),$K17*ABS($I17-D17)/ABS($I17-$J17)))) -> 0 | M17: =IF(E17<$H17,"ERROR",IF(E17>$I17,"ERROR",IF(E17<=$J17,$K17+(0.2*$K17*ABS(E17-$J17)/ABS($H17-$J17)),$K17*ABS($I17-E17)/ABS($I17-$J17)))) -> 10 | N17: 3.333333333
A18: NEG | C18: Número de complementos solicitados | D18: 1 | E18: 2 | F18: 5 | G18: (0,PEM/2000000) | H18: 0 | I18: =ROUNDUP((D2/2000000),0) -> 5 | J18: 2 | K18: 10 | L18: =IF(D18<$H18,"ERROR",IF(D18>$I18,"ERROR",IF(D18<=$J18,$K18+(0.2*$K18*ABS(D18-$J18)/ABS($H18-$J18)),$K18*ABS($I18-D18)/ABS($I18-$J18)))) -> 11 | M18: 10 | N18: 0
A19: NEG | C19: Número de correcciones solicitadas | D19: 0 | E19: 2 | F19: 3 | G19: (0,PEM/2000000) | H19: 0 | I19: =ROUNDUP((D2/2000000),0) -> 5 | J19: 2 | K19: 20 | L19: 24 | M19: 20 | N19: 13.33333333
A20: NEG | C20: Días de respuesta a las solicitudes por parte del proyectista | D20: 2 | E20: 2 | F20: 10 | G20: (1, PEM/suma de solicitudes) | H20: 1 | I20: =ROUNDUP(($D$2/((D17+D18+D19)*100000)),0) -> 10 | J20: 4 | K20: 20 | L20: 22.66666667 | M20: 22.66666667 | N20: 0
A21: NEG | C21: Tiempo de supervisión del proyecto (días laborables) | D21: 16 | E21: 17 | F21: 18 | G21: (PEM/750000, PEM/500000) | H21: =ROUNDUP((D2/750000),0) -> 14 | I21: =ROUNDUP((D2/500000),0) -> 20 | J21: 16 | K21: 10 | L21: 10 | M21: 7.5 | N21: 5
A22: NEG | C22: Tiempo de redacción del informe de supervisión (horas) | D22: 10 | E22: 10 | F22: 10 | G22: (PEM/1000000, PEM/750000) | H22: =ROUNDUP((D2/1000000),0) -> 10 | I22: =ROUNDUP((D2/750000),0) -> 14 | J22: 12 | K22: 8 | L22: 9.6 | M22: 9.6 | N22: 9.6
A23: NEG | C23: Tiempo de comunicación al proyectista de las solicitudes (días laborables) | D23: 1 | E23: 2 | F23: 2 | G23: (1, 3) | H23: 1 | I23: 3 | J23: 2 | K23: 5 | L23: 6 | M23: 5 | N23: 5
A24: POS | C24: Número de documentos complementarios/voluntarios | D24: 3 | E24: 1 | F24: 0 | G24: (0,PEM/1000000) | H24: 0 | I24: =ROUNDUP(($D$2/4000000),0) -> 3 | J24: =ROUNDUP((H24+2/3*(I24-H24)),0) -> 2 | K24: 5 | L24: =IF(D24<$H24,"ERROR",IF(D24>$I24,"ERROR",IF(D24>=$J24,$K24+(0.2*$K24*ABS(D24-$J24)/ABS($I24-$J24)),$K24*ABS($H24-D24)/ABS($H24-$J24)))) -> 6 | M24: =IF(E24<$H24,"ERROR",IF(E24>$I24,"ERROR",IF(E24>=$J24,$K24+(0.2*$K24*ABS(E24-$J24)/ABS($I24-$J24)),$K24*ABS($H24-E24)/ABS($H24-$J24)))) -> 2.5 | N24: 0
A25: POS | C25: % PEM destinado al Plan de Control | D25: 1 | E25: 1 | F25: 0.8 | G25: SI PEM (O, 300000);(1.5,3) SI PEM (300000, 1000000);(1,2) SI PEM>1000000;(0,5-1,5) | H25: 0.5 | I25: 1.25 | J25: =H25+2/3*(I25-H25) -> 1 | K25: 12 | L25: 12 | M25: 12 | N25: 7.2
C27: P INDICADORES SUPERVISORES PROYECTO | K27: =SUM(K17:K25) -> 100 | L27: =SUM(L17:L25) -> 101.2666667 | M27: =SUM(M17:M25) -> 99.26666667 | N27: =SUM(N17:N25) -> 43.46666667 | O27: 10 | P27: =$O27*L27/100 -> 10.12666667 | Q27: =$O27*M27/100 -> 9.926666667 | R27: =$O27*N27/100 -> 4.346666667
C29: FASE DE EJECUCIÓN
C30: E1 INDICADORES SUPERVISORES EJECUCIÓN | D30: OBRA 1 | E30: OBRA 2 | F30: OBRA 3 | G30: INTERVALO | H30: MIN | I30: MAX | J30: ESTÁNDAR | K30: PESO DE REFERENCIA | L30: PESO REAL | M30: PESO REAL 2 | N30: PESO REAL 3 | O30: PESO DE REF DEL GRUPO | P30: PESO REAL DEL GRUPO 1 | Q30: PESO REAL DEL GRUPO 2 | R30: PESO REAL DEL GRUPO 3
A31: NEG | C31: Cumplimiento cuantitativo del plan de control/mes (€) | D31: 0.9 | E31: 1 | F31: 0.75 | G31: (75%PEM CONTROL, 125% PEM Control) | H31: 0.75 | I31: 1.25 | J31: 1 | K31: 10 | L31: =IF(D31<$H31,"ERROR",IF(D31>$I31,"ERROR",IF(D31<=$J31,$K31+(0.2*$K31*ABS(D31-$J31)/ABS($H31-$J31)),$K31*ABS($I31-D31)/ABS($I31-$J31)))) -> 10.8 | M31: =IF(E31<$H31,"ERROR",IF(E31>$I31,"ERROR",IF(E31<=$J31,$K31+(0.2*$K31*ABS(E31-$J31)/ABS($H31-$J31)),$K31*ABS($I31-E31)/ABS($I31-$J31)))) -> 10 | N31: 12
A32: POS | C32: resultados aceptados/mes | D32: 0.85 | E32: 0.85 | F32: 0.85 | G32: (NINGUNO, TODOS) | H32: 0 | I32: 1 | J32: 0.8 | K32: 10 | L32: =IF(D32<$H32,"ERROR",IF(D32>$I32,"ERROR",IF(D32>=$J32,$K32+(0.2*$K32*ABS(D32-$J32)/ABS($I32-$J32)),$K32*ABS($H32-D32)/ABS($H32-$J32)))) -> 10.5 | M32: =IF(E32<$H32,"ERROR",IF(E32>$I32,"ERROR",IF(E32>=$J32,$K32+(0.2*$K32*ABS(E32-$J32)/ABS($I32-$J32)),$K32*ABS($H32-E32)/ABS($H32-$J32)))) -> 10.5 | N32: =IF(F32<$H32,"ERROR",IF(F32>$I32,"ERROR",IF(F32>=$J32,$K32+(0.2*$K32*ABS(F32-$J32)/ABS($I32-$J32)),$K32*ABS($H32-F32)/ABS($H32-$J32)))) -> 10.5
A33: NEG | C33: Resultados rechazados/mes | D33: 0.15 | E33: 0.15 | F33: 0.15 | G33: (NINGUNO, TODOS) | H33: 0 | I33: 1 | J33: 0.2 | K33: 10 | L33: =IF(D33<$H33,"ERROR",IF(D33>$I33,"ERROR",IF(D33<=$J33,$K33+(0.2*$K33*ABS(D33-$J33)/ABS($H33-$J33)),$K33*ABS($I33-D33)/ABS($I33-$J33)))) -> 10.5 | M33: 10.5 | N33: 10.5
A34: NEG | C34: Acciones que necesitan modificación de ejecución/mes | D34: 2 | E34: 2 | F34: 2 | G34: (0, (PEM/(Nº meses*20000))*1,33) | H34: 0 | I34: =ROUNDUP((D2/(D4*200000)),0) -> 3 | J34: =ROUNDUP((H34+1/3*(I34-H34)),0) -> 1 | K34: 5 | L34: =IF(D34<$H34,"ERROR",IF(D34>$I34,"ERROR",IF(D34<=$J34,$K34+(0.2*$K34*ABS(D34-$J34)/ABS($H34-$J34)),$K34*ABS($I34-D34)/ABS($I34-$J34)))) -> 2.5 | M34: 2.5 | N34: 2.5
A35: NEG | C35: Acciones que necesitan modificación presupuesto/mes | D35: 0 | E35: 1 | F35: 3 | G35: (0, (PEM/(Nº meses*20000))) | H35: 0 | I35: =ROUNDUP((D2/(D4*200000)),0) -> 3 | J35: 1 | K35: 25 | L35: =IF(D35<$H35,"ERROR",IF(D35>$I35,"ERROR",IF(D35<=$J35,$K35+(0.2*$K35*ABS(D35-$J35)/ABS($H35-$J35)),$K35*ABS($I35-D35)/ABS($I35-$J35)))) -> 30 | M35: 25 | N35: 0
A36: NEG | C36: No conformidades detectadas/mes (*) | D36: 18 | E36: 18 | F36: 18 | G36: (0, (PEM/(Nº meses*1500))) | H36: 0 | I36: =ROUNDUP((D2/(D4*15000)),0) -> 38 | J36: =ROUNDUP((H36+1/3*(I36-H36)),0) -> 13 | K36: 5 | L36: =IF(D36<$H36,"ERROR",IF(D36>$I36,"ERROR",IF(D36<=$J36,$K36+(0.2*$K36*ABS(D36-$J36)/ABS($H36-$J36)),$K36*ABS($I36-D36)/ABS($I36-$J36)))) -> 4 | M36: 4 | N36: 4
A37: POS | C37: No conformidades resueltas/mes (*) | D37: 16 | E37: 16 | F37: 10 | G37: (0, (PEM/(Nº meses*1500))) | H37: 0 | I37: =D36 -> 18 | J37: =ROUNDUP((H37+2/3*(I37-H37)),0) -> 12 | K37: 5 | L37: =IF(D37<$H37,"ERROR",IF(D37>$I37,"ERROR",IF(D37>=$J37,$K37+(0.2*$K37*ABS(D37-$J37)/ABS($I37-$J37)),$K37*ABS($H37-D37)/ABS($H37-$J37)))) -> 5.666666667 | M37: =IF(E37<$H37,"ERROR",IF(E37>$I37,"ERROR",IF(E37>=$J37,$K37+(0.2*$K37*ABS(E37-$J37)/ABS($I37-$J37)),$K37*ABS($H37-E37)/ABS($H37-$J37)))) -> 5.666666667 | N37: =IF(F37<$H37,"ERROR",IF(F37>$I37,"ERROR",IF(F37>=$J37,$K37+(0.2*$K37*ABS(F37-$J37)/ABS($I37-$J37)),$K37*ABS($H37-F37)/ABS($H37-$J37)))) -> 4.166666667
A38: NEG | C38: No conformidades pendientes /mes (*) | D38: =D36-D37 -> 2 | E38: 6 | F38: 8 | G38: (0, (PEM/(Nº meses*1500))) | H38: 0 | I38: =D36 -> 18 | J38: =ROUNDUP((H38+1/3*(I38-H38)),0) -> 6 | K38: 10 | L38: =IF(D38<$H38,"ERROR",IF(D38>$I38,"ERROR",IF(D38<=$J38,$K38+(0.2*$K38*ABS(D38-$J38)/ABS($H38-$J38)),$K38*ABS($I38-D38)/ABS($I38-$J38)))) -> 11.33333333 | M38: 10 | N38: 8.333333333
A39: NEG | C39: Nº de acciones de doble control/mes (*) | D39: 4 | E39: 5 | F39: 7 | G39: (0, (PEM/(Nº meses*5000)*)1/3) | H39: 0 | I39: =ROUNDUP((I36/3),0) -> 13 | J39: =ROUNDUP((H39+1/3*(I39-H39)),0) -> 5 | K39: 10 | L39: =IF(D39<$H39,"ERROR",IF(D39>$I39,"ERROR",IF(D39<=$J39,$K39+(0.2*$K39*ABS(D39-$J39)/ABS($H39-$J39)),$K39*ABS($I39-D39)/ABS($I39-$J39)))) -> 10.4 | M39: 10 | N39: 7.5
A40: NEG | C40: Nº de acciones de triple (o +) control/mes (*) | D40: 1 | E40: 2 | F40: 4 | G40: (0, (PEM/(Nº meses*5000)*)1/6) | H40: 0 | I40: =ROUNDUP((I36/6),0) -> 7 | J40: 3 | K40: 10 | L40: =IF(D40<$H40,"ERROR",IF(D40>$I40,"ERROR",IF(D40<=$J40,$K40+(0.2*$K40*ABS(D40-$J40)/ABS($H40-$J40)),$K40*ABS($I40-D40)/ABS($I40-$J40)))) -> 11.33333333 | M40: 10.66666667 | N40: 7.5
C43: E1 INDICADORES SUPERVISORES EJECUCIÓN | K43: =SUM(K31:K40) -> 100 | L43: =SUM(L31:L40) -> 107.0333333 | M43: =SUM(M31:M40) -> 98.83333333 | N43: =SUM(N31:N40) -> 67 | O43: 30 | P43: =$O43*L43/100 -> 32.11 | Q43: =$O43*M43/100 -> 29.65 | R43: =$O43*N43/100 -> 20.1
C46: E2 INDICADORES DIRECTOR OBRA | D46: OBRA 1 | E46: OBRA 2 | F46: OBRA 3 | G46: INTERVALO | H46: MIN | I46: MAX | J46: ESTÁNDAR | K46: PESO DE REFERENCIA | L46: PESO REAL | M46: PESO REAL 2 | N46: PESO REAL 3 | O46: PESO DEL GRUPO | P46: PESO REAL DEL GRUPO 1 | Q46: PESO REAL DEL GRUPO 2 | R46: PESO REAL DEL GRUPO 3
A47: NEG | C47: Nº de correcciones del proyecto/mes | D47: 1 | E47: 1 | F47: 1 | G47: (0, (PEM/(Nº meses*250000)) | H47: 0 | I47: =ROUNDUP((D2/(D4*250000)),0) -> 3 | J47: =ROUNDUP((H47+1/3*(I47-H47)),0) -> 1 | K47: 15 | L47: =IF(D47<$H47,"ERROR",IF(D47>$I47,"ERROR",IF(D47<=$J47,$K47+(0.2*$K47*ABS(D47-$J47)/ABS($H47-$J47)),$K47*ABS($I47-D47)/ABS($I47-$J47)))) -> 15 | M47: =IF(E47<$H47,"ERROR",IF(E47>$I47,"ERROR",IF(E47<=$J47,$K47+(0.2*$K47*ABS(E47-$J47)/ABS($H47-$J47)),$K47*ABS($I47-E47)/ABS($I47-$J47)))) -> 15 | N47: 15
A48: NEG | C48: Nº de correcciones de la ejecución/mes | D48: 1 | E48: 2 | F48: 1 | G48: (0, (PEM/(Nº meses*150000)) | H48: 0 | I48: =ROUNDUP((D2/(D4*150000)),0) -> 4 | J48: 2 | K48: 10 | L48: =IF(D48<$H48,"ERROR",IF(D48>$I48,"ERROR",IF(D48<=$J48,$K48+(0.2*$K48*ABS(D48-$J48)/ABS($H48-$J48)),$K48*ABS($I48-D48)/ABS($I48-$J48)))) -> 11 | M48: 10 | N48: 11
A49: NEG | C49: Nº de modificaciones del presupuesto/mes | D49: 1 | E49: 1 | F49: 1 | G49: (0, (PEM/(Nº meses*250000)) | H49: 0 | I49: =ROUNDUP((D2/(D4*250000)),0) -> 3 | J49: 1 | K49: 10 | L49: =IF(D49<$H49,"ERROR",IF(D49>$I49,"ERROR",IF(D49<=$J49,$K49+(0.2*$K49*ABS(D49-$J49)/ABS($H49-$J49)),$K49*ABS($I49-D49)/ABS($I49-$J49)))) -> 10 | M49: 10 | N49: 10
A50: POS | C50: Nº de instrucciones de modificación Libro Órdenes/mes | D50: 4 | E50: 3 | F50: 34 | G50: (0, (PEM/(Nº meses*150000)) | H50: 0 | I50: =ROUNDUP((D2/(D4*150000)),0) -> 4 | J50: =ROUNDUP((H50+2/3*(I50-H50)),0) -> 3 | K50: 5 | L50: =IF(D50<$H50,"ERROR",IF(D50>$I50,"ERROR",IF(D50>=$J50,$K50+(0.2*$K50*ABS(D50-$J50)/ABS($I50-$J50)),$K50*ABS($H50-D50)/ABS($H50-$J50)))) -> 6 | M50: =IF(E50<$H50,"ERROR",IF(E50>$I50,"ERROR",IF(E50>=$J50,$K50+(0.2*$K50*ABS(E50-$J50)/ABS($I50-$J50)),$K50*ABS($H50-E50)/ABS($H50-$J50)))) -> 5 | N50: ERROR
A51: POS | C51: Nº de apuntes (seguimiento) Libro Órdenes/mes | D51: 6 | E51: 4 | F51: 4 | G51: (1, (PEM/(Nº meses*75000)) | H51: 1 | I51: =ROUNDUP((D2/(D4*75000)),0) -> 8 | J51: =ROUNDUP((H51+2/3*(I51-H51)),0) -> 6 | K51: 10 | L51: =IF(D51<$H51,"ERROR",IF(D51>$I51,"ERROR",IF(D51>=$J51,$K51+(0.2*$K51*ABS(D51-$J51)/ABS($I51-$J51)),$K51*ABS($H51-D51)/ABS($H51-$J51)))) -> 10 | M51: 6 | N51: 6
A52: POS | C52: Nº de visitas/reuniones de obra/mes | D52: 6 | E52: 5 | F52: 5 | G52: (1, (PEM/(Nº meses*75000)) | H52: 1 | I52: =ROUNDUP((D2/(D4*75000)),0) -> 8 | J52: =ROUNDUP((H52+2/3*(I52-H52)),0) -> 6 | K52: 5 | L52: =IF(D52<$H52,"ERROR",IF(D52>$I52,"ERROR",IF(D52>=$J52,$K52+(0.2*$K52*ABS(D52-$J52)/ABS($I52-$J52)),$K52*ABS($H52-D52)/ABS($H52-$J52)))) -> 5 | M52: 4 | N52: 4
A53: POS | C53: Nº de informes de control para el promotor/mes | D53: 6 | E53: 5 | F53: 3 | G53: (0, (PEM/(Nº meses*150000)) | H53: 1 | I53: =ROUNDUP((D2/(D4*75000)),0) -> 8 | J53: =ROUNDUP((H53+2/3*(I53-H53)),0) -> 6 | K53: 15 | L53: =IF(D53<$H53,"ERROR",IF(D53>$I53,"ERROR",IF(D53>=$J53,$K53+(0.2*$K53*ABS(D53-$J53)/ABS($I53-$J53)),$K53*ABS($H53-D53)/ABS($H53-$J53)))) -> 15 | M53: 12 | N53: 6
A54: NEG | C54: Nº de recomendaciones del Coordinador de seguridad/mes | D54: 2 | E54: 2 | F54: 3 | G54: (0, (PEM/(Nº meses*150000)) | H54: 0 | I54: =ROUNDUP((D2/(D4*150000)),0) -> 4 | J54: 2 | K54: 20 | L54: =IF(D54<$H54,"ERROR",IF(D54>$I54,"ERROR",IF(D54<=$J54,$K54+(0.2*$K54*ABS(D54-$J54)/ABS($H54-$J54)),$K54*ABS($I54-D54)/ABS($I54-$J54)))) -> 20 | M54: 20 | N54: 10
A55: NEG | C55: Nº de recomendaciones de la Asistencia Técnica/mes | D55: 10 | E55: 10 | F55: 10 | G55: (0, (PEM/(Nº meses*20000)) | H55: 0 | I55: =ROUNDUP((D2/(D4*20000)),0) -> 28 | J55: 10 | K55: 5 | L55: =IF(D55<$H55,"ERROR",IF(D55>$I55,"ERROR",IF(D55<=$J55,$K55+(0.2*$K55*ABS(D55-$J55)/ABS($H55-$J55)),$K55*ABS($I55-D55)/ABS($I55-$J55)))) -> 5 | M55: 5 | N55: 5
A56: POS | C56: Nº de recomendaciones de la Asistencia Técnica consideradas/mes | D56: 13 | E56: 11 | F56: 9 | G56: (0, (PEM/(Nº meses*25000)) | H56: 0 | I56: =ROUNDUP((D2/(D4*25000)),0) -> 23 | J56: =ROUNDUP((H56+2/3*(I56-H56)),0) -> 16 | K56: 5 | L56: =IF(D56<$H56,"ERROR",IF(D56>$I56,"ERROR",IF(D56>=$J56,$K56+(0.2*$K56*ABS(D56-$J56)/ABS($I56-$J56)),$K56*ABS($H56-D56)/ABS($H56-$J56)))) -> 4.0625 | M56: =IF(E56<$H56,"ERROR",IF(E56>$I56,"ERROR",IF(E56>=$J56,$K56+(0.2*$K56*ABS(E56-$J56)/ABS($I56-$J56)),$K56*ABS($H56-E56)/ABS($H56-$J56)))) -> 3.4375 | N56: =IF(F56<$H56,"ERROR",IF(F56>$I56,"ERROR",IF(F56>=$J56,$K56+(0.2*$K56*ABS(F56-$J56)/ABS($I56-$J56)),$K56*ABS($H56-F56)/ABS($H56-$J56)))) -> 2.8125
C57: E2 INDICADORES DIRECTOR OBRA | K57: =SUM(K47:K56) -> 100 | L57: =SUM(L47:L56) -> 101.0625 | M57: =SUM(M47:M56) -> 90.4375 | N57: =SUM(N47:N56) -> 69.8125 | O57: 10 | P57: =$O57*L57/100 -> 10.10625 | Q57: =$O57*M57/100 -> 9.04375 | R57: =$O57*N57/100 -> 6.98125
C60: E3 INDICADORES DIRECTOR EJECUCIÓN OBRA | D60: OBRA 1 | E60: OBRA 2 | F60: OBRA 3 | G60: INTERVALO | H60: MIN | I60: MAX | J60: ESTÁNDAR | K60: PESO DE REFERENCIA | L60: PESO REAL | M60: PESO REAL 2 | N60: PESO REAL 3 | O60: PESO DE REF DEL GRUPO | P60: PESO REAL DEL GRUPO 1 | Q60: PESO REAL DEL GRUPO 2 | R60: PESO REAL DEL GRUPO 3
C61: DATO: Nº Materiales recibidos/mes= Total mat | D61: 10
A62: NEG | C62: Nº de materiales rechazados/mes por doc. incompleta | D62: 2 | E62: 3 | F62: 4 | G62: (0, Total mat) | H62: 0 | I62: =D61 -> 10 | J62: =ROUNDUP((H62+1/3*(I62-H62)),0) -> 4 | K62: 10 | L62: =IF(D62<$H62,"ERROR",IF(D62>$I62,"ERROR",IF(D62<=$J62,$K62+(0.2*$K62*ABS(D62-$J62)/ABS($H62-$J62)),$K62*ABS($I62-D62)/ABS($I62-$J62)))) -> 11 | M62: =IF(E62<$H62,"ERROR",IF(E62>$I62,"ERROR",IF(E62<=$J62,$K62+(0.2*$K62*ABS(E62-$J62)/ABS($H62-$J62)),$K62*ABS($I62-E62)/ABS($I62-$J62)))) -> 10.5 | N62: 10
A63: POS | C63: Nº de materiales aceptados/mes | D63: 8 | E63: 8 | F63: 6 | G63: (0, Total mat) | H63: 0 | I63: =D61 -> 10 | J63: =ROUNDUP((H63+2/3*(I63-H63)),0) -> 7 | K63: 5 | L63: =IF(D63<$H63,"ERROR",IF(D63>$I63,"ERROR",IF(D63>=$J63,$K63+(0.2*$K63*ABS(D63-$J63)/ABS($I63-$J63)),$K63*ABS($H63-D63)/ABS($H63-$J63)))) -> 5.333333333 | M63: =IF(E63<$H63,"ERROR",IF(E63>$I63,"ERROR",IF(E63>=$J63,$K63+(0.2*$K63*ABS(E63-$J63)/ABS($I63-$J63)),$K63*ABS($H63-E63)/ABS($H63-$J63)))) -> 5.333333333 | N63: =IF(F63<$H63,"ERROR",IF(F63>$I63,"ERROR",IF(F63>=$J63,$K63+(0.2*$K63*ABS(F63-$J63)/ABS($I63-$J63)),$K63*ABS($H63-F63)/ABS($H63-$J63)))) -> 4.285714286
A64: NEG | C64: Nº de solicitudes complementarias de documentación de materiales | D64: 5 | E64: 5 | F64: 6 | G64: (0, Total mat) | H64: 0 | I64: =D61 -> 10 | J64: =ROUNDUP((H64+1/3*(I64-H64)),0) -> 4 | K64: 5 | L64: =IF(D64<$H64,"ERROR",IF(D64>$I64,"ERROR",IF(D64<=$J64,$K64+(0.2*$K64*ABS(D64-$J64)/ABS($H64-$J64)),$K64*ABS($I64-D64)/ABS($I64-$J64)))) -> 4.166666667 | M64: 4.166666667 | N64: 3.333333333
A65: NEG | C65: Nº de correcciones de la ejecución/mes | D65: 1 | E65: 2 | F65: 4 | G65: (0, (PEM/(Nº meses*150000))*1,33) | H65: 0 | I65: =ROUNDUP((D2/(D4*75000)),0) -> 8 | J65: =ROUNDUP((H65+1/3*(I65-H65)),0) -> 3 | K65: 10 | L65: =IF(D65<$H65,"ERROR",IF(D65>$I65,"ERROR",IF(D65<=$J65,$K65+(0.2*$K65*ABS(D65-$J65)/ABS($H65-$J65)),$K65*ABS($I65-D65)/ABS($I65-$J65)))) -> 11.33333333 | M65: 10.66666667 | N65: 8
A66: POS | C66: Nº de recomendaciones de la Asistencia Técnica consideradas/mes | D66: 15 | E66: 12 | F66: 6 | G66: (0, (PEM/(Nº meses*25000)) | H66: 0 | I66: =ROUNDUP((D2/(D4*25000)),0) -> 23 | J66: =ROUNDUP((H66+2/3*(I66-H66)),0) -> 16 | K66: 5 | L66: =IF(D66<$H66,"ERROR",IF(D66>$I66,"ERROR",IF(D66>=$J66,$K66+(0.2*$K66*ABS(D66-$J66)/ABS($I66-$J66)),$K66*ABS($H66-D66)/ABS($H66-$J66)))) -> 4.6875 | M66: 3.75 | N66: 1.875
A67: POS | C67: Nº de visitas/reuniones de obra | D67: 6 | E67: 4 | F67: 4 | G67: (1, (PEM/(Nº meses*75000)) | H67: 1 | I67: =ROUNDUP((D2/(D4*75000)),0) -> 8 | J67: =ROUNDUP((H67+2/3*(I67-H67)),0) -> 6 | K67: 5 | L67: 5 | M67: 3 | N67: 3
A68: NEG | C68: Nº de recomendaciones del Coordinador de seguridad/mes | D68: 2 | E68: 3 | F68: 3 | G68: (0, (PEM/(Nº meses*150000)) | H68: 0 | I68: =ROUNDUP((D2/(D4*150000)),0) -> 4 | J68: =ROUNDUP((H68+1/3*(I68-H68)),0) -> 2 | K68: 20 | L68: =IF(D68<$H68,"ERROR",IF(D68>$I68,"ERROR",IF(D68<=$J68,$K68+(0.2*$K68*ABS(D68-$J68)/ABS($H68-$J68)),$K68*ABS($I68-D68)/ABS($I68-$J68)))) -> 20 | M68: 10 | N68: 10
A69: NEG | C69: % Ajuste en plazo de la aplicación del Plan de Control/mes | D69: 0.9 | E69: 1 | F69: 1 | G69: (75%PEM CONTROL, 125% PEM Control) | H69: 0.75 | I69: 1.25 | J69: 1 | K69: 20 | L69: =IF(D69<$H69,"ERROR",IF(D69>$I69,"ERROR",IF(D69<=$J69,$K69+(0.2*$K69*ABS(D69-$J69)/ABS($H69-$J69)),$K69*ABS($I69-D69)/ABS($I69-$J69)))) -> 21.6 | M69: 20 | N69: 20
A70: NEG | C70: % Ajuste en presupuesto de la aplicación del Plan de Control/mes | D70: 0.9 | E70: 1.15 | F70: 1.1 | G70: (75%PEM CONTROL, 125% PEM Control) | H70: 0.75 | I70: 1.25 | J70: 1 | K70: 20 | L70: =IF(D70<$H70,"ERROR",IF(D70>$I70,"ERROR",IF(D70<=$J70,$K70+(0.2*$K70*ABS(D70-$J70)/ABS($H70-$J70)),$K70*ABS($I70-D70)/ABS($I70-$J70)))) -> 21.6 | M70: 8 | N70: 12
C71: E3 INDICADORES DIRECTOR EJECUCIÓN OBRA | K71: =SUM(K62:K70) -> 100 | L71: =SUM(L62:L70) -> 104.7208333 | M71: =SUM(M62:M70) -> 75.41666667 | N71: =SUM(N62:N70) -> 72.49404762 | O71: 10 | P71: =$O71*L71/100 -> 10.47208333 | Q71: =$O71*M71/100 -> 7.541666667 | R71: =$O71*N71/100 -> 7.249404762
C74: E4 INDICADORES ASISTENCIA TÉCNICA | D74: OBRA 1 | E74: OBRA 2 | F74: OBRA 3 | G74: INTERVALO | H74: MIN | I74: MAX | J74: ESTÁNDAR | K74: PESO | L74: PESO REAL | M74: PESO REAL 2 | N74: PESO REAL 3 | O74: PESO DE REF DEL GRUPO | P74: PESO REAL DEL GRUPO 1 | Q74: PESO REAL DEL GRUPO 2 | R74: PESO REAL DEL GRUPO 3
A75: NEG | C75: No conformidades detectadas/mes (*) | D75: 18 | E75: 18 | F75: 20 | G75: (0, (PEM/(Nº meses*1500))) | H75: 0 | I75: =ROUNDUP((D2/(D4*15000)),0) -> 38 | J75: =ROUNDUP((H75+1/3*(I75-H75)),0) -> 13 | K75: 10 | L75: =IF(D75<$H75,"ERROR",IF(D75>$I75,"ERROR",IF(D75<=$J75,$K75+(0.2*$K75*ABS(D75-$J75)/ABS($H75-$J75)),$K75*ABS($I75-D75)/ABS($I75-$J75)))) -> 8 | M75: =IF(E75<$H75,"ERROR",IF(E75>$I75,"ERROR",IF(E75<=$J75,$K75+(0.2*$K75*ABS(E75-$J75)/ABS($H75-$J75)),$K75*ABS($I75-E75)/ABS($I75-$J75)))) -> 8 | N75: 7.2
A76: POS | C76: No conformidades resueltas/mes (*) | D76: 16 | E76: 13 | F76: 16 | G76: (0, (PEM/(Nº meses*1500))) | H76: 0 | I76: =D75 -> 18 | J76: =ROUNDUP((H76+2/3*(I76-H76)),0) -> 12 | K76: 5 | L76: =IF(D76<$H76,"ERROR",IF(D76>$I76,"ERROR",IF(D76>=$J76,$K76+(0.2*$K76*ABS(D76-$J76)/ABS($I76-$J76)),$K76*ABS($H76-D76)/ABS($H76-$J76)))) -> 5.666666667 | M76: =IF(E76<$H76,"ERROR",IF(E76>$I76,"ERROR",IF(E76>=$J76,$K76+(0.2*$K76*ABS(E76-$J76)/ABS($I76-$J76)),$K76*ABS($H76-E76)/ABS($H76-$J76)))) -> 5.166666667 | N76: =IF(F76<$H76,"ERROR",IF(F76>$I76,"ERROR",IF(F76>=$J76,$K76+(0.2*$K76*ABS(F76-$J76)/ABS($I76-$J76)),$K76*ABS($H76-F76)/ABS($H76-$J76)))) -> 5.666666667
A77: NEG | C77: No conformidades pendientes /mes (*) | D77: =D75-D76 -> 2 | E77: =E75-E76 -> 5 | F77: =F75-F76 -> 4 | G77: (0, (PEM/(Nº meses*1500))) | H77: 0 | I77: =D75 -> 18 | J77: =ROUNDUP((H77+1/3*(I77-H77)),0) -> 6 | K77: 10 | L77: =IF(D77<$H77,"ERROR",IF(D77>$I77,"ERROR",IF(D77<=$J77,$K77+(0.2*$K77*ABS(D77-$J77)/ABS($H77-$J77)),$K77*ABS($I77-D77)/ABS($I77-$J77)))) -> 11.33333333 | M77: 10.33333333 | N77: 10.66666667
A78: NEG | C78: Nº de acciones de doble control/mes (*) | D78: 4 | E78: 8 | F78: 10 | G78: (0, No conformidades/3) | H78: 0 | I78: =ROUNDUP((I75/3),0) -> 13 | J78: =ROUNDUP((H78+1/3*(I78-H78)),0) -> 5 | K78: 5 | L78: =IF(D78<$H78,"ERROR",IF(D78>$I78,"ERROR",IF(D78<=$J78,$K78+(0.2*$K78*ABS(D78-$J78)/ABS($H78-$J78)),$K78*ABS($I78-D78)/ABS($I78-$J78)))) -> 5.2 | M78: 3.125 | N78: 1.875
A79: NEG | C79: Nº de acciones de triple (o +) control/mes (*) | D79: 1 | E79: 3 | F79: 5 | G79: (0, No conformidades/6) | H79: 0 | I79: =ROUNDUP((I75/6),0) -> 7 | J79: =ROUNDUP((H79+1/3*(I79-H79)),0) -> 3 | K79: 10 | L79: =IF(D79<$H79,"ERROR",IF(D79>$I79,"ERROR",IF(D79<=$J79,$K79+(0.2*$K79*ABS(D79-$J79)/ABS($H79-$J79)),$K79*ABS($I79-D79)/ABS($I79-$J79)))) -> 11.33333333 | M79: 10 | N79: 5
A80: NEG | C80: Nº de recomendaciones al director de obra/mes | D80: 8 | E80: 15 | F80: 18 | G80: (0, (PEM/(Nº meses*20000)) | H80: 0 | I80: =ROUNDUP((D2/(D4*20000)),0) -> 28 | J80: =ROUNDUP((H80+1/3*(I80-H80)),0) -> 10 | K80: 10 | L80: =IF(D80<$H80,"ERROR",IF(D80>$I80,"ERROR",IF(D80<=$J80,$K80+(0.2*$K80*ABS(D80-$J80)/ABS($H80-$J80)),$K80*ABS($I80-D80)/ABS($I80-$J80)))) -> 10.4 | M80: 7.222222222 | N80: 5.555555556
A81: NEG | C81: Nº de recomendaciones del Coordinador de seguridad/mes | D81: 1 | E81: 1 | F81: 2 | G81: (0, (PEM/(Nº meses*300000)) | H81: 0 | I81: =ROUNDUP((D2/(D4*300000)),0) -> 2 | J81: =ROUNDUP((H81+1/3*(I81-H81)),0) -> 1 | K81: 10 | L81: =IF(D81<$H81,"ERROR",IF(D81>$I81,"ERROR",IF(D81<=$J81,$K81+(0.2*$K81*ABS(D81-$J81)/ABS($H81-$J81)),$K81*ABS($I81-D81)/ABS($I81-$J81)))) -> 10 | M81: 10 | N81: 0
A82: POS | C82: Nº de visitas/reuniones de obra/mes | D82: 5 | E82: 4 | F82: 4 | G82: (1, (PEM/(Nº meses*75000)) | H82: 1 | I82: =ROUNDUP((D2/(D4*75000)),0) -> 8 | J82: =ROUNDUP((H82+2/3*(I82-H82)),0) -> 6 | K82: 10 | L82: =IF(D82<$H82,"ERROR",IF(D82>$I82,"ERROR",IF(D82>=$J82,$K82+(0.2*$K82*ABS(D82-$J82)/ABS($I82-$J82)),$K82*ABS($H82-D82)/ABS($H82-$J82)))) -> 8 | M82: =IF(E82<$H82,"ERROR",IF(E82>$I82,"ERROR",IF(E82>=$J82,$K82+(0.2*$K82*ABS(E82-$J82)/ABS($I82-$J82)),$K82*ABS($H82-E82)/ABS($H82-$J82)))) -> 6 | N82: =IF(F82<$H82,"ERROR",IF(F82>$I82,"ERROR",IF(F82>=$J82,$K82+(0.2*$K82*ABS(F82-$J82)/ABS($I82-$J82)),$K82*ABS($H82-F82)/ABS($H82-$J82)))) -> 6
C83: Nº de comunicaciones fuera de plazo/mes | D83: 2 | E83: 4 | F83: 4 | G83: (0, 5) | H83: 0 | I83: 5 | J83: 4 | K83: 10 | L83: =IF(D83<$H83,"ERROR",IF(D83>$I83,"ERROR",IF(D83<=$J83,$K83+(0.2*$K83*ABS(D83-$J83)/ABS($H83-$J83)),$K83*ABS($I83-D83)/ABS($I83-$J83)))) -> 11 | M83: 10 | N83: 10
A84: POS | C84: Nº de informes de control para el promotor/mes | D84: 2 | E84: 1 | F84: 2 | G84: (0, (PEM/(Nº meses*150000)) | H84: 1 | I84: =ROUNDUP((D2/(D4*150000)),0) -> 4 | J84: 1 | K84: 20 | L84: =IF(D84<$H84,"ERROR",IF(D84>$I84,"ERROR",IF(D84>=$J84,$K84+(0.2*$K84*ABS(D84-$J84)/ABS($I84-$J84)),$K84*ABS($H84-D84)/ABS($H84-$J84)))) -> 21.33333333 | M84: =IF(E84<$H84,"ERROR",IF(E84>$I84,"ERROR",IF(E84>=$J84,$K84+(0.2*$K84*ABS(E84-$J84)/ABS($I84-$J84)),$K84*ABS($H84-E84)/ABS($H84-$J84)))) -> 20 | N84: =IF(F84<$H84,"ERROR",IF(F84>$I84,"ERROR",IF(F84>=$J84,$K84+(0.2*$K84*ABS(F84-$J84)/ABS($I84-$J84)),$K84*ABS($H84-F84)/ABS($H84-$J84)))) -> 21.33333333
C85: E4 INDICADORES ASISTENCIA TÉCNICA | K85: =SUM(K75:K84) -> 100 | L85: =SUM(L75:L84) -> 102.2666667 | M85: =SUM(M75:M84) -> 89.84722222 | N85: =SUM(N75:N84) -> 73.29722222 | O85: 10 | P85: =$O85*L85/100 -> 10.22666667 | Q85: =$O85*M85/100 -> 8.984722222 | R85: =$O85*N85/100 -> 7.329722222
C88: E5 INDICADORES LABORATORIO DE ENSAYOS | D88: OBRA 1 | E88: OBRA 2 | F88: OBRA 3 | G88: INTERVALO | H88: MIN | I88: MAX | J88: ESTÁNDAR | K88: PESO | L88: PESO REAL | M88: PESO REAL 2 | N88: PESO REAL 3 | O88: PESO DE REF DEL GRUPO | P88: PESO REAL DEL GRUPO 1 | Q88: PESO REAL DEL GRUPO 2 | R88: PESO REAL DEL GRUPO 3
A89: NEG | C89: No conformidades detectadas/mes (*) | D89: 18 | E89: 18 | F89: 25 | G89: (0, (PEM/(Nº meses*1500))) | H89: 0 | I89: =ROUNDUP((D2/(D4*15000)),0) -> 38 | J89: =ROUNDUP((H89+1/3*(I89-H89)),0) -> 13 | K89: 10 | L89: =IF(D89<$H89,"ERROR",IF(D89>$I89,"ERROR",IF(D89<=$J89,$K89+(0.2*$K89*ABS(D89-$J89)/ABS($H89-$J89)),$K89*ABS($I89-D89)/ABS($I89-$J89)))) -> 8 | M89: =IF(E89<$H89,"ERROR",IF(E89>$I89,"ERROR",IF(E89<=$J89,$K89+(0.2*$K89*ABS(E89-$J89)/ABS($H89-$J89)),$K89*ABS($I89-E89)/ABS($I89-$J89)))) -> 8 | N89: 5.2
A90: NEG | C90: Nº de ensayos repetidos/mes (*) | D90: 6 | E90: 6 | F90: 10 | G90: (0, No conformidades/3) | H90: 0 | I90: =ROUNDUP((I89/3),0) -> 13 | J90: =ROUNDUP((H90+1/3*(I90-H90)),0) -> 5 | K90: 20 | L90: 17.5 | M90: 17.5 | N90: 7.5
A91: NEG | C91: Nº de comunicaciones de anomalías al director de obra/mes | D91: 5 | E91: 6 | F91: 6 | G91: (0, (PEM/(Nº meses*20000)) | H91: 0 | I91: 22 | J91: =ROUNDUP((H91+1/3*(I91-H91)),0) -> 8 | K91: 15 | L91: 16.125 | M91: 15.75 | N91: 15.75
A92: NEG | C92: Nº de recomendaciones del Coordinador de seguridad/mes | D92: 1 | E92: 1 | F92: 1 | G92: (0, (PEM/(Nº meses*300000)) | H92: 0 | I92: =ROUNDUP((D20/(D21*300000)),0) -> 1 | J92: =ROUNDUP((H92+1/3*(I92-H92)),0) -> 1 | K92: 5 | L92: 5 | M92: 5 | N92: 5
A93: NEG | C93: % Ajuste en plazo de la aplicación del Plan de Control/mes | D93: 0.9 | E93: 1 | F93: 1 | G93: (75%PEM CONTROL, 125% PEM Control) | H93: 0.75 | I93: 1.25 | J93: 1 | K93: 15 | L93: 16.2 | M93: 15 | N93: 15
A94: NEG | C94: % Ajuste en presupuesto de la aplicación del Plan de Control/mes | D94: 0.9 | E94: 1.05 | F94: 1 | G94: (75%PEM CONTROL, 125% PEM Control) | H94: 0.75 | I94: 1.25 | J94: 1 | K94: 15 | L94: 16.2 | M94: 12 | N94: 15
A95: POS | C95: Nº de visitas/reuniones de obra/mes | D95: 3 | E95: 3 | F95: 3 | G95: (1, (PEM/(Nº meses*75000)) | H95: 1 | I95: 4 | J95: =ROUNDUP((H95+2/3*(I95-H95)),0) -> 3 | K95: 10 | L95: =IF(D95<$H95,"ERROR",IF(D95>$I95,"ERROR",IF(D95>=$J95,$K95+(0.2*$K95*ABS(D95-$J95)/ABS($I95-$J95)),$K95*ABS($H95-D95)/ABS($H95-$J95)))) -> 10 | M95: 10 | N95: 10
A96: POS | C96: Nº de informes de control para el promotor/mes | D96: 1 | E96: 1 | F96: 1 | G96: (0, (PEM/(Nº meses*150000)) | H96: 1 | I96: =ROUNDUP((D2/(D4*150000)),0) -> 4 | J96: 1 | K96: 10 | L96: 10 | M96: 10 | N96: 10
C97: E5 INDICADORES LABORATORIO DE ENSAYOS | K97: =SUM(K89:K96) -> 100 | L97: =SUM(L89:L96) -> 99.025 | M97: =SUM(M89:M96) -> 93.25 | N97: =SUM(N89:N96) -> 83.45 | O97: 10 | P97: =$O97*L97/100 -> 9.9025 | Q97: =$O97*M97/100 -> 9.325 | R97: =$O97*N97/100 -> 8.345
C100: E6 INDICADORES EMPRESA CONSTRUCTORA | D100: OBRA 1 | E100: OBRA 2 | F100: OBRA 3 | G100: INTERVALO | H100: MIN | I100: MAX | J100: ESTÁNDAR | K100: PESO | L100: PESO REAL 1 | M100: PESO REAL 2 | N100: PESO REAL 3 | O100: PESO DE REF DEL GRUPO | P100: PESO REAL DEL GRUPO 1 | Q100: PESO REAL DEL GRUPO 2 | R100: PESO REAL DEL GRUPO 3
A101: POS | C101: Nº de instrucciones de modificación Libro Órdenes/mes | D101: 3 | E101: 3 | F101: 4 | G101: (0, (PEM/(Nº meses*150000)) | H101: 0 | I101: =ROUNDUP((D2/(D4*150000)),0) -> 4 | J101: =ROUNDUP((H101+2/3*(I101-H101)),0) -> 3 | K101: 5 | L101: =IF(D101<$H101,"ERROR",IF(D101>$I101,"ERROR",IF(D101>=$J101,$K101+(0.2*$K101*ABS(D101-$J101)/ABS($I101-$J101)),$K101*ABS($H101-D101)/ABS($H101-$J101)))) -> 5 | M101: =IF(E101<$H101,"ERROR",IF(E101>$I101,"ERROR",IF(E101>=$J101,$K101+(0.2*$K101*ABS(E101-$J101)/ABS($I101-$J101)),$K101*ABS($H101-E101)/ABS($H101-$J101)))) -> 5 | N101: =IF(F101<$H101,"ERROR",IF(F101>$I101,"ERROR",IF(F101>=$J101,$K101+(0.2*$K101*ABS(F101-$J101)/ABS($I101-$J101)),$K101*ABS($H101-F101)/ABS($H101-$J101)))) -> 6
A102: NEG | C102: % Ajuste en plazo de ejecución | D102: 0.9 | E102: 1 | F102: 1.1 | G102: (75%PEM CONTROL, 125% PEM Control) | H102: 0.75 | I102: 1.25 | J102: 1 | K102: 20 | L102: =IF(D102<$H102,"ERROR",IF(D102>$I102,"ERROR",IF(D102<=$J102,$K102+(0.2*$K102*ABS(D102-$J102)/ABS($H102-$J102)),$K102*ABS($I102-D102)/ABS($I102-$J102)))) -> 21.6 | M102: =IF(E102<$H102,"ERROR",IF(E102>$I102,"ERROR",IF(E102<=$J102,$K102+(0.2*$K102*ABS(E102-$J102)/ABS($H102-$J102)),$K102*ABS($I102-E102)/ABS($I102-$J102)))) -> 20 | N102: =IF(F102<$H102,"ERROR",IF(F102>$I102,"ERROR",IF(F102<=$J102,$K102+(0.2*$K102*ABS(F102-$J102)/ABS($H102-$J102)),$K102*ABS($I102-F102)/ABS($I102-$J102)))) -> 12
A103: NEG | C103: % Ajuste presupuesto sobre el total anual | D103: 0.9 | E103: 1.05 | F103: 0.9 | G103: (75%PEM CONTROL, 125% PEM Control) | H103: 0.75 | I103: 1.25 | J103: 1 | K103: 40 | L103: =IF(D103<$H103,"ERROR",IF(D103>$I103,"ERROR",IF(D103<=$J103,$K103+(0.2*$K103*ABS(D103-$J103)/ABS($H103-$J103)),$K103*ABS($I103-D103)/ABS($I103-$J103)))) -> 43.2 | M103: =IF(E103<$H103,"ERROR",IF(E103>$I103,"ERROR",IF(E103<=$J103,$K103+(0.2*$K103*ABS(E103-$J103)/ABS($H103-$J103)),$K103*ABS($I103-E103)/ABS($I103-$J103)))) -> 32 | N103: 43.2
A104: NEG | C104: Nº de instrucciones aspectos seguridad laboral/mes | D104: 2 | E104: 2 | F104: 4 | G104: (0, (PEM/(Nº meses*150000)) | H104: 0 | I104: =ROUNDUP((D2/(D4*150000)),0) -> 4 | J104: =ROUNDUP((H104+1/3*(I104-H104)),0) -> 2 | K104: 10 | L104: =IF(D104<$H104,"ERROR",IF(D104>$I104,"ERROR",IF(D104<=$J104,$K104+(0.2*$K104*ABS(D104-$J104)/ABS($H104-$J104)),$K104*ABS($I104-D104)/ABS($I104-$J104)))) -> 10 | M104: =IF(E104<$H104,"ERROR",IF(E104>$I104,"ERROR",IF(E104<=$J104,$K104+(0.2*$K104*ABS(E104-$J104)/ABS($H104-$J104)),$K104*ABS($I104-E104)/ABS($I104-$J104)))) -> 10 | N104: =IF(F104<$H104,"ERROR",IF(F104>$I104,"ERROR",IF(F104<=$J104,$K104+(0.2*$K104*ABS(F104-$J104)/ABS($H104-$J104)),$K104*ABS($I104-F104)/ABS($I104-$J104)))) -> 0
A105: NEG | C105: Nº de recomendaciones del Coordinador de seguridad/mes | D105: 3 | E105: 4 | F105: 5 | G105: (0, (PEM/(Nº meses*100000)) | H105: 0 | I105: =ROUNDUP((D2/(D4*100000)),0) -> 6 | J105: =ROUNDUP((H105+1/3*(I105-H105)),0) -> 2 | K105: 10 | L105: =IF(D105<$H105,"ERROR",IF(D105>$I105,"ERROR",IF(D105<=$J105,$K105+(0.2*$K105*ABS(D105-$J105)/ABS($H105-$J105)),$K105*ABS($I105-D105)/ABS($I105-$J105)))) -> 7.5 | M105: 5 | N105: 2.5
A106: NEG | C106: Nº de materiales rechazados/mes por cualquier causa | D106: 2 | E106: 4 | F106: 6 | G106: (0, Total mat) | H106: 0 | I106: =D61 -> 10 | J106: =ROUNDUP((H106+1/3*(I106-H106)),0) -> 4 | K106: 10 | L106: =IF(D106<$H106,"ERROR",IF(D106>$I106,"ERROR",IF(D106<=$J106,$K106+(0.2*$K106*ABS(D106-$J106)/ABS($H106-$J106)),$K106*ABS($I106-D106)/ABS($I106-$J106)))) -> 11 | M106: =IF(E106<$H106,"ERROR",IF(E106>$I106,"ERROR",IF(E106<=$J106,$K106+(0.2*$K106*ABS(E106-$J106)/ABS($H106-$J106)),$K106*ABS($I106-E106)/ABS($I106-$J106)))) -> 10 | N106: =IF(F106<$H106,"ERROR",IF(F106>$I106,"ERROR",IF(F106<=$J106,$K106+(0.2*$K106*ABS(F106-$J106)/ABS($H106-$J106)),$K106*ABS($I106-F106)/ABS($I106-$J106)))) -> 6.666666667
A107: POS | C107: Nº de recomendaciones de la Asistencia Técnica/mes | D107: 20 | E107: 18 | F107: 17 | G107: (0, (PEM/(Nº meses*25000)) | H107: 0 | I107: =ROUNDUP((D2/(D4*25000)),0) -> 23 | J107: =ROUNDUP((H107+2/3*(I107-H107)),0) -> 16 | K107: 5 | L107: =IF(D107<$H107,"ERROR",IF(D107>$I107,"ERROR",IF(D107>=$J107,$K107+(0.2*$K107*ABS(D107-$J107)/ABS($I107-$J107)),$K107*ABS($H107-D107)/ABS($H107-$J107)))) -> 5.571428571 | M107: =IF(E107<$H107,"ERROR",IF(E107>$I107,"ERROR",IF(E107>=$J107,$K107+(0.2*$K107*ABS(E107-$J107)/ABS($I107-$J107)),$K107*ABS($H107-E107)/ABS($H107-$J107)))) -> 5.285714286 | N107: =IF(F107<$H107,"ERROR",IF(F107>$I107,"ERROR",IF(F107>=$J107,$K107+(0.2*$K107*ABS(F107-$J107)/ABS($I107-$J107)),$K107*ABS($H107-F107)/ABS($H107-$J107)))) -> 5.142857143
C108: E6 INDICADORES EMPRESA CONSTRUCTORA | K108: =SUM(K101:K107) -> 100 | L108: =SUM(L101:L107) -> 103.8714286 | M108: =SUM(M101:M107) -> 87.28571429 | N108: =SUM(N101:N107) -> 75.50952381 | O108: 20 | P108: =$O108*L108/100 -> 20.77428571 | Q108: =$O108*M108/100 -> 17.45714286 | R108: =$O108*N108/100 -> 15.10190476
P110: OBRA 1 | Q110: OBRA 2 | R110: OBRA 3
C111: ÍNDICE DE CALIDAD | O111: =O108+O85+O71+O57+O43+O27+O97 -> 100 | P111: =P108+P97+P85+P71+P57+P43+P27 -> 103.7184524 | Q111: =Q108+Q97+Q85+Q71+Q57+Q43+Q27 -> 91.92894841 | R111: =R108+R97+R85+R71+R57+R43+R27 -> 69.45394841
M115: LEYENDA
M116: A | N116: Buena calidad
M117: B | N117: Calidad aceptable
M118: C | N118: Calidad deficiente
M119: D | N119: Mala calidad
